[Event "Dutch Open 2022"]
[Site "Dieren"]
[Date "2022.07.27"]
[Round "2.16"]
[White "Kumar, Prajit Sai"]
[Black "Vogel, Jaap"]
[Result "1-0"]
[ECO "D02"]
[WhiteElo "2040"]
[BlackElo "2147"]
[Annotator "TA"]
[PlyCount "121"]
[EventDate "2022.07.14"]
[EventType "swiss"]
[EventCountry "NED"]
[SourceTitle "playchess.com"]
[Source "ChessBase"]
[SourceQuality "1"]
[TimeControl "40/5400+30:1800+30"]

{[%evp 9,121,1,0,0,0,0,32,29,50,49,62,50,70,73,82,82,83,70,93,100,113,113,111,93,85,50,68,64,58,72,62,66,64,55,56,62,203,163,294,285,530,70,70,52,45,47,45,51,45,57,60,0,50,-11,70,75,336,330,463,397,488,372,350,360,493,183,461,0,0,0,145,45,653,644,585,635,573,597,675,606,941,281,238,269,232,0,0,0,0,0,0,0,0,0,252,246,251,218,227,218,220,184,541,554,542,532,491,338,296,158,1343,1325,1170,1090]} 1. d4 {[%emt 0:00:01]} e6 {[%emt 0:00:36]} 2. Nf3 {[%emt 0:00:07]} Nf6 {[%emt 0:00:24]} 3. Bf4 {[%emt 0:00:05]} c5 {[%emt 0:05:16]} 4. c3 {[%emt 0:00:10]} d5 {[%emt 0:05:10]} 5. e3 {[%emt 0:00:13]} Bd6 {[%emt 0:00:03]} 6. Nbd2 {[%emt 0:00:12] D02: 1 d4 d5 2 Nf3 sidelines, including 2...Nf6 3 g3 and 2...Nf6 3 Bf4.} cxd4 {[%emt 0:02:57]} 7. Bxd6 {[%emt 0:00:17]} (7. Nxd4 $2 e5 8. Bb5+ Kf8 9. Bxe5 Bxe5 $19) 7... Qxd6 {[%emt 0:04:17]} 8. exd4 {[%emt 0:00:25] White is slightly better.} Nc6 {[%emt 0:00:30]} 9. Bd3 {[%emt 0:00:13]} Bd7 {[%emt 0:07:45]} 10. O-O {[%emt 0:00:16]} Ne7 {[%emt 0:04:51]} 11. Ne5 {[%emt 0:01:32] [#]} a6 $146 {[%emt 0:01:25]} ({Predecessor:} 11... Ng6 12. f4 O-O 13. g4 Ne8 14. g5 Nxe5 15. fxe5 Qe7 16. Qh5 g6 17. Qh6 Ng7 18. Rf4 Nf5 19. Bxf5 exf5 20. Rh4 f6 21. gxf6 Qf7 22. Nf3 {1-0 (22) Hava,J-Trepka,J Klatovy 2003}) 12. a4 {[%emt 0:01:41][%cal Ba2a4,Ba4a5][%mdl 32]} Bc6 {[%emt 0:11:32]} 13. Qe2 {[%emt 0:00:45]} Nd7 {[%emt 0:13:18]} 14. f4 {[%emt 0:00:55]} g6 {[%emt 0:03:43]} 15. b4 {[%emt 0:05:23] Strongly threatening b5.} Nb6 {[%emt 0:05:36]} 16. Bc2 {[%emt 0:04:51]} O-O {[%emt 0:03:14]} 17. a5 {[%emt 0:00:40]} Bb5 {[%emt 0:01:07]} 18. Bd3 {[%emt 0:00:51]} Bxd3 {[%emt 0:02:49]} 19. Qxd3 {[%emt 0:00:06]} Nbc8 {[%emt 0:25:27]} 20. Rae1 {[%emt 0:01:37] 0x0.00144b11fa89dp-1022s more active pieces. The black rooks are badly placed.} Qc7 {[%emt 0:00:00]} 21. Nb3 {[%emt 0:01:57]} Nd6 {[%emt 0:00:00]} 22. Nc5 {[%emt 0:00:10]} Nc6 {[%emt 0:00:00]} (22... Ne4 $14) 23. Qh3 {[%emt 0:03:52]} Nxe5 {[%emt 0:00:00]} (23... Ne4 {is a better defense.}) 24. fxe5 $18 {[%emt 0:00:06]} (24. dxe5 Nc4 $14) 24... Nf5 {[%emt 0:00:00]} (24... Ne8 25. Qh6 Qe7) 25. Rf3 $2 {[%emt 0:00:30]} ({White has to play} 25. g4 $18) 25... h5 $14 {[%emt 0:00:35]} 26. g4 {[%emt 0:01:50]} hxg4 {[%emt 0:00:13]} 27. Qxg4 $40 {[%emt 0:00:06][%mdl 128] White is up to no good.} Kg7 {[%emt 0:00:15]} 28. Qg5 {[%emt 0:02:31]} Rh8 $1 {[%emt 0:00:23]} 29. Qf6+ {[%emt 0:00:15]} Kg8 {[%emt 0:00:05]} 30. Kh1 {[%emt 0:02:07]} ({White should play} 30. Rd1 $1 $14) 30... Re8 {[%emt 0:01:32]} (30... Rh6 $11) 31. c4 {[%emt 0:06:05]} (31. Rd1 $1 $14) 31... dxc4 {[%emt 0:00:24]} (31... Qd8 $11 32. Nxb7 (32. Qxd8 Rxd8 33. Nxb7 Rb8 $11) 32... Qxf6 33. exf6 Nxd4) 32. d5 $1 {[%emt 0:00:07][%cal Rd5e6]} exd5 {[%emt 0:01:21][%mdl 8192]} (32... Rh7 $16) 33. Rxf5 $18 {[%emt 0:00:09]} d4 {[%emt 0:00:20]} (33... c3 $142 34. Rf2 Qe7) 34. Rg5 {[%emt 0:02:21]} Rh6 {[%emt 0:00:15]} 35. Qf2 {[%emt 0:02:07]} d3 {[%emt 0:00:47]} 36. e6 {[%emt 0:00:25]} f5 {[%emt 0:00:11]} 37. Qg2 $2 {[%emt 0:01:24]} (37. Rg2) 37... Qg7 {[%emt 0:00:40]} (37... Qc6) 38. Qd5 $2 {[%emt 0:00:39]} ({Better is} 38. Rf1 $18) 38... Rxh2+ $1 $11 {[%emt 0:00:19]} 39. Kg1 {[%emt 0:00:58][%cal Bh1g1,Bg1g2,Bg2g3][%mdl 32]} Kh7 {[%emt 0:01:24]} 40. Rg2 {[%emt 0:10:17]} (40. Qxc4 $2 d2 41. Rf1 Qh6 $19) (40. Rf1 $1 $16 {[%cal Rf1f5] Threatens to win with Rfxf5.} Rh5 41. Rfxf5 Rxg5+ 42. Rxg5 Qa1+ 43. Kg2 (43. Kh2 Rh8 $11)) 40... Rxg2+ $4 {[%emt 0:00:48][%mdl 8192]} (40... Rh4 $14) 41. Kxg2 $18 {[%emt 0:30:07]} Qf6 {[%emt 0:03:38]} 42. Rh1+ {[%emt 0:00:00]} Kg7 {[%emt 0:00:56]} 43. Qxc4 {[%emt 0:00:00]} Qb2+ {[%emt 0:10:37]} 44. Kg3 {[%emt 0:00:00]} d2 {[%emt 0:00:32] aiming for ...Qe5+.} 45. Nd3 {[%emt 0:00:00] Against Qe5+} (45. Qh4 {Threatening mate with Qh7+.} Qc3+ 46. Kf2 d1=N+ 47. Rxd1 Qc2+ 48. Ke1 Qc3+ 49. Ke2 (49. Kf1 Qf3+ 50. Ke1 Qe3+ 51. Kf1 Qf3+ 52. Ke1 Qe3+ 53. Kf1 Qf3+ $11)) 45... Qf6 {[%emt 0:01:31]} 46. Qc7+ {[%emt 0:00:00]} (46. Qf4 Qxe6 47. Qh6+ Kf7 48. Qh7+ Kf6 49. Qh4+ Kf7 50. Qh7+ Kf6 51. Qh4+ Kf7 52. Qh7+ $11) 46... Re7 {[%emt 0:03:35]} 47. Qc8 {[%emt 0:00:00]} (47. Qf4 $6 g5 48. Qxd2 f4+ 49. Kg2 Rxe6) (47. Qb8 $1 $18 {[%csl Gh1][%cal Rb8h8]} Qg5+ 48. Kf2 d1=N+ 49. Rxd1 Qh4+ 50. Qg3 Qd4+ 51. Kf1 Rxe6 52. Qc7+ Kh6 53. Qxb7) 47... Qg5+ $11 {[%emt 0:06:14]} 48. Kf2 {[%emt 0:00:00][%csl Gh1][%cal Rc8h8]} d1=N+ $1 {[%emt 0:07:55]} 49. Rxd1 {[%emt 0:56:37] Really sharp!} Qh4+ {[%emt 0:00:00]} 50. Kf1 {[%emt 0:00:00]} Qh1+ {[%emt 0:00:00]} 51. Ke2 {[%emt 0:00:00]} Qe4+ {[%emt 0:00:00][%mdl 8192] [#]} (51... Qh5+ $1 $11 {and Black stays safe.} 52. Kd2 Qh2+ 53. Ke1 Qh1+ 54. Ke2 (54. Kd2 Qh2+ 55. Ke3 Qh3+ 56. Kf2 Qh4+ 57. Kf1 Qh1+ 58. Ke2 Qh5+ 59. Ke1 Qh1+ 60. Ke2 $11) 54... Qh5+ 55. Ke1 (55. Kd2 Qh2+ 56. Ke3 Qh3+ 57. Kf2 Qh4+ 58. Kf1 Qh1+ 59. Ke2 $11) 55... Qh1+ 56. Ke2 (56. Kd2 Qh2+ 57. Ke3 Qh3+ 58. Kf2 Qh4+ 59. Kf1 Qh1+ 60. Ke2 $11)) 52. Kd2 $1 $18 {[%emt 0:00:00]} Rxe6 {[%emt 0:00:00]} 53. Qc3+ {[%emt 0:00:00]} (53. Re1 Qg2+ 54. Kd1 Qg4+ 55. Kd2 Qg5+ 56. Kd1 Qg4+ 57. Kd2 Qg5+ 58. Kd1 Qg4+ $11) 53... Kf7 {[%emt 0:00:00]} 54. Kc1 {[%emt 0:00:00]} ({Much less strong is} 54. Re1 $6 Qg2+ 55. Kd1 Qf3+ 56. Kd2 Qg2+ 57. Kc1 Qg5+ 58. Kb1 Rxe1+ 59. Qxe1 (59. Nxe1 Qe7 $16) 59... Qe7) 54... g5 {[%emt 0:01:07]} 55. Kb2 {[%emt 0:00:00] Hoping for Nc5.} Kg6 $2 {[%emt 0:00:36]} (55... Qd5 {is more resistant.} 56. Rd2 Re3) 56. Nc5 {[%emt 0:00:00][%csl LRe4,LRe6]} Qg2+ {[%emt 0:00:08]} 57. Kb3 {[%emt 0:00:00]} Re2 {[%emt 0:00:57]} 58. Rd8 {[%emt 0:00:00]} ({Less strong is} 58. Rd7 Kh5 59. Nxb7 f4 $18) 58... Kh5 {[%emt 0:00:27] [#]} 59. Nd3 {[%emt 0:00:00]} ({White should try} 59. Nxb7 $1 $18 {[%mdl 512]} f4 (59... Qf1 60. Ka3) 60. Nc5 (60. Rh8+ $2 Kg4 $19)) 59... Qe4 $2 {[%emt 0:00:56]} (59... Re3 $16) 60. Qh8+ {[%emt 0:00:00]} Kg4 {[%emt 0:00:05]} 61. Rd4 {[%emt 0:00:00] Weighted Error Value: White=0.58/Black=0.55} 1-0

[Event "Dutch Open 2022"]
[Site "Dieren"]
[Date "2022.07.27"]
[Round "2.17"]
[White "Saketh, Pedagandham"]
[Black "De Boer, Bas"]
[Result "1/2-1/2"]
[ECO "B22"]
[WhiteElo "1928"]
[BlackElo "2136"]
[Annotator "TA"]
[PlyCount "46"]
[EventDate "2022.07.14"]
[EventType "swiss"]
[EventCountry "NED"]
[SourceTitle "playchess.com"]
[Source "ChessBase"]
[SourceQuality "1"]
[TimeControl "40/5400+30:1800+30"]

{[%evp 22,46,0,10,5,-6,-10,-7,-8,0,0,0,0,-3,-4,-2,0,-10,0,0,0,0,0,0,7,0,0]} 1. e4 {[%emt 0:10:47]} c5 {[%emt 0:00:08]} 2. c3 {[%emt 0:00:05]} Nf6 {[%emt 0:00:07]} 3. e5 {[%emt 0:00:04]} Nd5 {[%emt 0:00:05]} 4. d4 {[%emt 0:00:05]} cxd4 {[%emt 0:00:32]} 5. Nf3 {[%emt 0:00:06]} d6 {[%emt 0:00:53]} 6. cxd4 {[%emt 0:00:28]} Nc6 {[%emt 0:00:24]} 7. Bc4 {[%emt 0:02:23]} Nb6 {[%emt 0:01:12]} 8. Bb5 {[%emt 0:00:30]} dxe5 {[%emt 0:01:36]} 9. Nxe5 {[%emt 0:01:40]} Bd7 {[%emt 0:00:06]} 10. Nxd7 {[%emt 0:00:12]} Qxd7 {[%emt 0:00:03]} 11. O-O {[%emt 0:00:13]} e6 {[%emt 0:03:19]} 12. Nc3 {[%emt 0:05:35] The position is equal.} Rd8 $1 {[%emt 0:00:41][%cal Ba8d8,Bd8d4,Bd4c4][%mdl 4] outshines the older 12...Be7. B22: Sicilian: 2 c3.} 13. Bg5 {[%emt 0:04:47]} Be7 {[%emt 0:03:23]} 14. Bxe7 {[%emt 0:05:16]} Qxe7 {[%emt 0:02:03]} 15. Qf3 {[%emt 0:04:59]} O-O {[%emt 0:02:02]} 16. Bxc6 {[%emt 0:00:17]} bxc6 {[%emt 0:00:06]} 17. Qxc6 {[%emt 0:00:04]} Rxd4 {[%emt 0:02:43]} 18. Rad1 $36 {[%emt 0:01:54][%mdl 2048] White has some pressure.} Rc4 {[%emt 0:14:31]} 19. Qd6 {[%emt 0:03:57]} Qb7 {[%emt 0:04:22]} 20. Rd4 {[%emt 0:05:46] [#]} Rcc8 $146 {[%emt 0:18:23]} ({Predecessor:} 20... h6 21. Rfd1 Rfc8 22. h3 Rxd4 23. Qxd4 Qc6 24. Rd3 Qc4 25. Qd6 Qc7 26. Qxc7 Rxc7 {1-0 (55) Maksimenko,A (2499)-Damljanovic,B (2625) Zlatibor 2006}) 21. Qb4 {[%emt 0:15:27] Against Nc4} Qb8 {[%emt 0:13:22]} 22. Rfd1 {[%emt 0:02:13]} Qe5 {[%emt 0:05:21]} 23. g3 {[%emt 0:05:36]} g6 {[%emt 0:01:49] A balanced but interesting game.  Weighted Error Value: White=0.02 (flawless) /Black=0.02 (flawless)} 1/2-1/2

[Event "Dutch Open 2022"]
[Site "Dieren"]
[Date "2022.07.27"]
[Round "2.18"]
[White "Kohler, Aran"]
[Black "Achuthan, Dylan"]
[Result "0-1"]
[ECO "D03"]
[WhiteElo "2121"]
[BlackElo "1989"]
[Annotator "TA"]
[PlyCount "112"]
[EventDate "2022.07.14"]
[EventType "swiss"]
[EventCountry "NED"]
[SourceTitle "playchess.com"]
[Source "ChessBase"]
[SourceQuality "1"]
[TimeControl "40/5400+30:1800+30"]

{[%evp 14,111,6,0,10,-8,-12,-80,-11,-11,-11,-11,-11,-11,-11,-11,-11,-6,-7,-6,-8,-8,27,32,28,27,34,0,0,0,0,0,0,0,0,-7,27,27,27,25,24,19,28,28,28,27,53,28,18,21,17,0,0,-74,-64,-64,-40,-55,0,-60,-65,-62,-24,-93,-79,-85,-87,-77,-76,-92,-82,-133,-128,-428,-417,-419,-408,-535,-521,-554,-559,-539,-526,-489,-455,-608,-606,-730,-583,-601,-585,-29962,-29962,-29973,-29973,-29978,-29979,-29980,-29981,-29999]} 1. d4 {[%emt 0:00:07]} Nf6 {[%emt 0:00:43]} 2. c3 {[%emt 0:00:12]} g6 {[%emt 0:00:11]} 3. Bg5 {[%emt 0:00:07]} Bg7 {[%emt 0:00:15]} 4. Nd2 {[%emt 0:00:09]} d5 {[%emt 0:00:07]} 5. e3 {[%emt 0:00:30]} O-O {[%emt 0:00:08]} 6. Bd3 {[%emt 0:00:49]} c5 {[%emt 0:00:15]} 7. Ngf3 {[%emt 0:02:52]} Qb6 {[%emt 0:02:09]} 8. Rb1 {[%emt 0:02:02]} Nc6 {[%emt 0:01:56] D03: 1 d4 d5 2 Nf3 Nf6 3 Bg5, including Torre Attack with early ...d5.} 9. h3 {[%emt 0:00:20]} Re8 {[%emt 0:01:26]} 10. Bf4 {[%emt 0:00:24] [#]} (10. dxc5 $11 Qxc5 11. O-O) 10... Nd7 {[%emt 0:15:08]} (10... cxd4 11. exd4 Nd7) (10... cxd4 $1 $17 {aiming for ...e5.} 11. exd4 Nd7) 11. O-O $11 {[%emt 0:07:25]} e5 {[%emt 0:09:03]} 12. dxe5 {[%emt 0:00:10]} Ndxe5 {[%emt 0:01:49] [#]} 13. Bc2 $146 {[%emt 0:00:27]} ({Predecessor:} 13. Nxe5 Nxe5 14. Bc2 Qa6 15. a3 Nd3 16. Bxd3 Qxd3 17. Nf3 Bf5 18. Rc1 Qc4 19. Qd2 {0-1 (36) Feierfeil,J (1978)-Voracek,M (2153) Ricany 2007}) 13... Be6 {[%emt 0:19:51]} 14. Ng5 {[%emt 0:01:59]} Bd7 {[%emt 0:10:54]} 15. b4 {[%emt 0:02:05]} h6 {[%emt 0:06:16]} 16. Ngf3 {[%emt 0:00:25]} cxb4 {[%emt 0:09:58]} 17. cxb4 {[%emt 0:04:40]} g5 {[%emt 0:05:01]} (17... Nxb4 $2 18. Nxe5 Bxe5 19. Bxe5 $18) 18. Nxe5 {[%emt 0:10:08]} Nxe5 {[%emt 0:02:58]} 19. Bxe5 {[%emt 0:00:26]} Bxe5 {[%emt 0:01:28]} 20. Nc4 {[%emt 0:04:33]} dxc4 {[%emt 0:01:03]} 21. Qxd7 {[%emt 0:00:08][%cal Oh3h4]} Rad8 {[%emt 0:01:53]} 22. Qg4 {[%emt 0:00:16]} c3 {[%emt 0:01:53]} 23. Ba4 {[%emt 0:03:15]} Re7 {[%emt 0:01:08][%cal Be8e7,Be7c7,Bc7c6,Bc6d6,Bd6d2][%mdl 32]} 24. Rfd1 {[%emt 0:00:23]} Rd6 {[%emt 0:02:55]} 25. Rxd6 {[%emt 0:07:27]} Qxd6 {[%emt 0:00:01]} 26. Rd1 {[%emt 0:00:41]} Qe6 {[%emt 0:01:06]} 27. Qe2 {[%emt 0:01:34]} Rc7 {[%emt 0:01:12]} 28. Bb3 {[%emt 0:06:12]} Qe7 {[%emt 0:00:01]} 29. Qd3 {[%emt 0:01:21]} Rc6 {[%emt 0:01:57] Against Qg6+} 30. Bc2 {[%emt 0:02:48]} Rd6 {[%emt 0:00:33]} 31. Qh7+ {[%emt 0:01:08]} Kf8 {[%emt 0:00:00]} 32. Rf1 {[%emt 0:06:29]} Qf6 {[%emt 0:01:40]} 33. g3 {[%emt 0:01:06]} (33. Rd1 $11 {remains equal.}) 33... Rd2 $17 {[%emt 0:00:42]} 34. Bb3 {[%emt 0:02:16]} b6 {[%emt 0:00:49]} 35. Qe4 {[%emt 0:01:02]} Kg7 {[%emt 0:00:46]} (35... b5 $15) 36. Bc2 {[%emt 0:04:03]} (36. f4 $11 gxf4 37. gxf4) 36... Bd6 $15 {[%emt 0:00:38] Active counter play!} 37. a3 {[%emt 0:04:33]} Qg6 {[%emt 0:00:31]} 38. Qd4+ {[%emt 0:04:05]} Rxd4 $17 {[%emt 0:00:01]} 39. Bxg6 {[%emt 0:00:11][%mdl 4096] Endgame KRB-KRB} Rd2 {[%emt 0:00:26]} (39... Kxg6 $2 40. exd4 a5 41. bxa5 bxa5 42. Rc1 $18) 40. Be4 {[%emt 0:00:33]} Ra2 {[%emt 0:00:57]} 41. Rd1 {[%emt 0:34:17]} Be5 {[%emt 0:02:35]} 42. f4 {[%emt 0:00:00]} (42. Kf1 $142) 42... Bf6 {[%emt 0:02:21]} 43. Rd7 $2 {[%emt 0:00:00][%mdl 8192] [#] This costs White the game.} (43. b5 $17 {was worth a try.}) 43... c2 $19 {[%emt 0:01:38]} 44. Bxc2 {[%emt 0:00:00]} Rxc2 {[%emt 0:00:11]} 45. Rxa7 {[%emt 0:00:00] KRB-KR} Re2 {[%emt 0:03:59]} 46. a4 {[%emt 0:00:00]} Rxe3 {[%emt 0:01:53]} 47. Kg2 {[%emt 0:00:00]} Rb3 {[%emt 0:00:36]} 48. fxg5 {[%emt 0:00:00]} hxg5 {[%emt 0:00:37]} 49. b5 {[%emt 0:00:00]} Bc3 {[%emt 0:00:18]} 50. Rc7 {[%emt 0:00:00]} Ba5 {[%emt 0:00:39]} 51. Rc4 {[%emt 0:00:00]} Rb4 {[%emt 0:00:16]} 52. Rxb4 {[%emt 0:00:00]} Bxb4 {[%emt 0:00:05] Black mates.} 53. Kf3 {[%emt 0:00:00]} f5 {[%emt 0:00:23]} 54. h4 {[%emt 0:00:00]} g4+ {[%emt 0:00:01]} 55. Kf4 {[%emt 0:00:00]} Kf6 {[%emt 0:00:05][%cal Rb4d2]} 56. h5 {[%emt 0:00:00]} Bd2# {[%emt 0:00:35] Weighted Error Value: White=0.49/Black=0.16 (very precise)} 0-1

[Event "Dutch Open 2022"]
[Site "Dieren"]
[Date "2022.07.29"]
[Round "4.1"]
[White "Lahaye, Rick"]
[Black "Van Roon, Sjoerd"]
[Result "1/2-1/2"]
[ECO "A07"]
[WhiteElo "2417"]
[BlackElo "2310"]
[Annotator "TA"]
[PlyCount "121"]
[EventDate "2022.07.14"]
[EventType "swiss"]
[EventCountry "NED"]
[SourceTitle "playchess.com"]
[Source "ChessBase"]
[SourceQuality "1"]
[TimeControl "40/5400+30:1800+30"]

{[%evp 9,121,-3,0,0,-3,-8,5,16,26,0,41,40,47,36,87,93,92,85,87,100,249,255,292,272,287,289,285,296,286,294,236,249,307,176,289,289,626,361,372,337,357,312,278,170,145,145,187,175,160,189,223,174,228,170,258,265,542,537,531,403,364,0,526,530,530,473,424,454,489,517,443,329,341,334,320,299,371,377,356,339,410,314,323,323,461,493,438,251,260,265,282,149,149,34,35,36,46,20,20,20,20,7,8,0,8,8,14,-8,-8,-8,-8,-8,-8,-8]} 1. g3 {[%emt 0:00:04]} d5 {[%emt 0:00:31]} 2. Bg2 {[%emt 0:00:07]} Nf6 {[%emt 0:01:14]} 3. Nf3 {[%emt 0:00:14]} Bf5 {[%emt 0:01:10]} 4. d3 {[%emt 0:00:24]} Nc6 {[%emt 0:01:16][%cal Bb8c6,Bc6a5,Ba5b3][%mdl 32]} 5. a3 {[%emt 0:02:20]} e5 {[%emt 0:04:23]} 6. O-O {[%emt 0:03:56] A07: Réti Opening: New York and Capablanca Systems.} a5 {[%emt 0:06:32] [#] Against b4} 7. Nc3 $146 {[%emt 0:06:21][%cal Oe2e4]} ({Predecessor:} 7. Nbd2 Qd7 8. c4 dxc4 9. Nxc4 Bd6 10. Bg5 Qe6 11. Ne3 O-O 12. Nxf5 Qxf5 13. Bxf6 Qxf6 14. Qa4 e4 15. Nd2 exd3 16. exd3 Qxb2 17. Nc4 Qd4 18. Bxc6 {½-½ (18) Doncevic,D (2249)-Angun,B (2076) Skopje 2019}) 7... d4 {[%emt 0:06:39]} 8. Nb5 {[%emt 0:12:29]} a4 {[%emt 0:01:57]} 9. Bd2 {[%emt 0:19:22]} (9. c3 $5 {[%cal Rc3d4]}) 9... Na5 {[%emt 0:14:06]} 10. b4 {[%emt 0:10:19]} axb3 $1 {[%emt 0:00:42]} 11. cxb3 {[%emt 0:00:06]} Be6 {[%emt 0:03:20]} ({Black should play} 11... Bd6 $14) 12. Nxe5 $16 {[%emt 0:05:55]} c6 {[%emt 0:14:43]} 13. b4 $36 {[%emt 0:00:03][%mdl 2048] White is in control. White is more active.} Nb3 {[%emt 0:00:05]} 14. Nxc6 $1 {[%emt 0:00:06]} bxc6 {[%emt 0:00:06]} (14... Qb6 $16 15. Ncxd4 Nxd4 16. Nxd4 Qxd4) 15. Bxc6+ $18 {[%emt 0:00:05]} Ke7 {[%emt 0:00:03]} 16. Bxa8 {[%emt 0:00:26]} Qxa8 {[%emt 0:03:47]} 17. Nc7 {[%emt 0:00:36]} Qc6 {[%emt 0:03:17][%cal Oe6h3]} 18. Nxe6 {[%emt 0:03:35]} Qxe6 {[%emt 0:00:16]} 19. Rb1 {[%emt 0:00:12]} Nxd2 {[%emt 0:01:41]} 20. Qxd2 {[%emt 0:00:02]} h5 {[%emt 0:02:32]} 21. e3 {[%emt 0:04:06]} (21. b5 $142) 21... h4 {[%emt 0:04:44]} (21... dxe3 {might work better.} 22. Qxe3 Qxe3 23. fxe3 g6) 22. exd4 {[%emt 0:01:57]} Qh3 $2 {[%emt 0:01:09]} (22... Kd7 23. Rbc1 hxg3 24. fxg3 Bd6) 23. Qc2 {[%emt 0:00:53] And now Qc5+ would win.} hxg3 {[%emt 0:12:21][%csl Gg3,Gh8][%cal Rh3h2]} 24. Qc7+ {[%emt 0:00:47]} Nd7 {[%emt 0:00:25][%csl Gg3,Gh8][%cal Rh3h2]} 25. Rbe1+ {[%emt 0:00:53]} (25. Qxg3 g6 26. Rfc1 Qxg3+ 27. hxg3 (27. fxg3 Bg7 $16) 27... Bg7 $18) 25... Kf6 {[%emt 0:00:11][%csl Gg3,Gh8][%cal Rh3h2]} 26. Qc6+ {[%emt 0:12:32]} ({Don't take} 26. Qxg3 $6 g6 $16) 26... Kg5 {[%emt 0:02:03][%csl Gg3,Gh8][%cal Rh3h2]} 27. f4+ {[%emt 0:00:20]} Kh4 {[%emt 0:02:04][%csl Gg3][%cal Rh3h2]} 28. Re2 {[%emt 0:00:59]} ({Worse is} 28. Qh1 gxh2+ 29. Qxh2 Qxh2+ 30. Kxh2 Kg4+ 31. Kg1 Rh3 $11) 28... Rh6 {[%emt 0:04:13]} 29. Qg2 {[%emt 0:04:48]} Rg6 {[%emt 0:00:37] ...gxh2+ is the strong threat.} 30. Qxh3+ {[%emt 0:01:15]} Kxh3 {[%emt 0:00:05]} 31. Re3 {[%emt 0:00:44]} Kh4 {[%emt 0:00:46]} (31... Nf6 $142 32. Rff3 Nh5) 32. hxg3+ {[%emt 0:02:06]} Rxg3+ $2 {[%emt 0:00:06]} (32... Kg4 33. Rc1 Rd6) 33. Kf2 {[%emt 0:00:04]} Rg6 {[%emt 0:00:06]} 34. Kf3 {[%emt 0:04:22][%cal Rf1h1]} Rg3+ {[%emt 0:00:06]} 35. Kf2 {[%emt 0:00:05]} (35. Ke2 $142 $1) 35... Rg6 {[%emt 0:00:03]} 36. Rh1+ {[%emt 0:00:25]} Kg4 {[%emt 0:00:08]} 37. Rg1+ {[%emt 0:00:06]} Kf5 {[%emt 0:00:23]} 38. Rxg6 {[%emt 0:00:05]} fxg6 {[%emt 0:00:16]} 39. Re8 {[%emt 0:00:24]} Bd6 {[%emt 0:00:36]} 40. Rd8 {[%emt 0:00:38] aiming for d5.} Ke6 {[%emt 0:01:27]} 41. Kf3 {[%emt 0:35:11]} Nb6 {[%emt 0:33:04] Against Ra8} 42. Ke4 {[%emt 0:00:00]} Nd5 {[%emt 0:00:00]} 43. Re8+ {[%emt 0:00:00]} Be7 {[%emt 0:00:00] Strongly threatening ...Nf6+.} 44. Ra8 {[%emt 0:00:00]} Bd6 {[%emt 0:00:00]} 45. Ra6 {[%emt 0:00:00] Threatens to win with Kf3.} Nc3+ {[%emt 0:00:00]} 46. Ke3 {[%emt 0:00:00]} Nd5+ {[%emt 0:00:00]} (46... Kd5 {was necessary.} 47. Ra7 Nb5) 47. Kf3 {[%emt 0:00:00]} Nc7 {[%emt 0:00:00]} 48. Ra7 {[%emt 0:00:00]} (48. Ra5 $142) 48... Nb5 {[%emt 0:00:00]} 49. Rxg7 {[%emt 0:00:00]} Kd5 {[%emt 0:00:00] [#]} 50. Rxg6 {[%emt 0:00:00]} (50. a4 $1 $18 {[%cal Ra4b5]} Nxd4+ 51. Kg4 Bxf4 52. a5) 50... Nxa3 $16 {[%emt 0:00:00] [#]} 51. b5 {[%emt 0:00:00]} ({White has to play} 51. Kg4 $1 $16) 51... Nxb5 $14 {[%emt 0:00:00]} 52. Rg5+ {[%emt 0:00:00]} Kc6 {[%emt 0:00:00]} 53. d5+ {[%emt 0:00:00]} Kc5 {[%emt 0:00:00] The position is equal.} 54. f5 {[%emt 0:00:00]} Be5 {[%emt 0:00:00]} 55. Ke3 {[%emt 0:01:50]} Nd6 {[%emt 0:00:00]} 56. Kf3 {[%emt 0:02:32]} Kxd5 {[%emt 0:00:00]} 57. Kg4 {[%emt 0:01:00]} Kd4 {[%emt 0:01:12]} 58. Rg6 {[%emt 0:00:38]} Kxd3 {[%emt 0:00:27]} 59. Re6 {[%emt 0:00:23]} (59. Rxd6+ $5 Bxd6 60. Kh5 $11) 59... Ke4 {[%emt 0:00:16]} 60. f6 {[%emt 0:00:26]} Kd5 {[%emt 0:00:04]} 61. Rxd6+ {[%emt 0:00:25] Black defended with fortune.  Weighted Error Value: White=0.41/Black=0.30} 1/2-1/2